[Event "Berlin Championship 2024"]
[Site "Berlin"]
[Date "2024.04.06"]
[Round "8.3"]
[White "Hesse, Henrik"]
[Black "Lagunow, Raphael"]
[Result "0-1"]
[ECO "A20"]
[WhiteElo "2312"]
[BlackElo "2421"]
[Annotator "TA"]
[PlyCount "74"]
[EventDate "2024.03.30"]
[EventType "swiss"]
[EventCountry "GER"]
[SourceTitle "playchess.com"]
[Source "ChessBase"]
[SourceQuality "1"]
[TimeControl "40/5400+30:1800+30"]

{[%evp 9,74,12,0,0,0,-8,0,0,0,-13,0,0,0,0,0,0,0,0,0,0,16,0,3,8,10,8,6,7,12,0,7,-50,-40,-34,-32,-58,-55,-56,-56,-54,-57,-64,-52,-53,-30,-35,-29,-41,-32,-64,-56,-54,-68,-242,-238,-280,-235,-258,-258,-383,-370,-374,-372,-845,-857,-29966,-29966]} 1. c4 {[%emt 0:00:03]} e5 {[%emt 0:00:05]} 2. g3 {[%emt 0:00:09]} c6 {[%emt 0:00:05]} 3. d4 {[%emt 0:02:06]} e4 {[%emt 0:00:10]} 4. d5 {[%emt 0:00:05]} Bb4+ {[%emt 0:00:10]} 5. Bd2 {[%emt 0:00:21]} Qe7 {[%emt 0:00:07]} 6. Bxb4 {[%emt 0:00:39]} Qxb4+ {[%emt 0:00:06]} 7. Qd2 {[%emt 0:00:03]} Qxc4 {[%emt 0:00:12]} 8. Nc3 {[%emt 0:00:08][%cal Bb1c3,Bc3e4,Be4d6][%mdl 32] The position is equal.} Nf6 {[%emt 0:00:08][%cal Rf6d5]} 9. e3 {[%emt 0:00:08]} Qc5 {[%emt 0:00:06][%cal Rf6d5]} 10. Rc1 {[%emt 0:00:32][%cal Oc3b5]} Qa5 {[%emt 0:00:10]} (10... Nxd5 $2 {is the wrong capture.} 11. Nxd5 (11. Nxe4 Qb4 $11) 11... Qd6 12. Nc3 $18) 11. Bg2 {[%emt 0:06:14]} Na6 {[%emt 0:00:12]} 12. Bxe4 {[%emt 0:05:29]} Nxe4 {[%emt 0:31:18]} 13. Nxe4 {[%emt 0:00:16]} Qxd2+ {[%emt 0:01:04]} 14. Kxd2 {[%emt 0:00:31]} cxd5 {[%emt 0:01:18]} 15. Nd6+ {[%emt 0:02:28]} Ke7 {[%emt 0:00:11]} 16. Nb5 {[%emt 0:01:06]} (16. Nf5+ Kf6 17. Nd4 b6) 16... b6 {[%emt 0:05:50]} 17. Ne2 {[%emt 0:06:15]} Bb7 {[%emt 0:03:43]} 18. Rhd1 {[%emt 0:04:44]} Bc6 {[%emt 0:13:53]} 19. Nbd4 {[%emt 0:20:47][%mdl 1024] White has compensation.} Nc5 {[%emt 0:05:34]} 20. b4 {[%emt 0:08:28]} (20. Ke1 $11) 20... Ne4+ $15 {[%emt 0:02:11]} 21. Ke1 {[%emt 0:00:07][%cal Of2f3]} Rhc8 {[%emt 0:11:02]} 22. Nb3 {[%emt 0:20:08]} Bb7 {[%emt 0:06:23]} 23. f3 {[%emt 0:07:21]} Nf6 {[%emt 0:02:47]} 24. Nbd4 {[%emt 0:02:46]} g6 {[%emt 0:00:52] Prevents Nf5+} 25. b5 {[%emt 0:03:49]} Rc4 {[%emt 0:02:08]} 26. Rb1 {[%emt 0:01:26]} a6 {[%emt 0:05:38]} 27. bxa6 {[%emt 0:00:26]} Rxa6 {[%emt 0:00:05]} 28. Rd2 {[%emt 0:00:30]} d6 {[%emt 0:00:42]} 29. Nb5 {[%emt 0:01:52]} Nd7 {[%emt 0:02:12]} 30. Kf2 {[%emt 0:03:08]} Ne5 {[%emt 0:00:26]} 31. Nbc3 $2 {[%emt 0:01:07] [#] This costs White the game.} (31. g4 $15) 31... Nxf3 $1 $19 {[%emt 0:01:36][%mdl 512]} 32. Nxd5+ {[%emt 0:01:42]} (32. Kxf3 d4+) 32... Bxd5 {[%emt 0:00:06]} 33. Rxd5 {[%emt 0:00:01]} Nxh2 {[%emt 0:00:15]} 34. Rdb5 {[%emt 0:00:55]} (34. Rd2 $142) 34... Ng4+ {[%emt 0:00:24]} (34... Rxa2 35. R1b2 Ng4+ 36. Kf3 $19) 35. Kf3 {[%emt 0:00:05]} Ne5+ {[%emt 0:00:52]} 36. Kf2 $2 {[%emt 0:00:04]} (36. Kg2) 36... Rxa2 {[%emt 0:00:13] Strongly threatening ...Rcc2.} 37. Rxb6 {[%emt 0:02:15]} Rcc2 {[%emt 0:00:21] Weighted Error Value: White=0.59/Black=0.03 (flawless) .  Loses game:     	White=1     	---        Mistake:       	White=3     	---        Inaccurate:     	White=3     	---        OK:         	White=12    	Black=10     Best:        	White=2     	Black=4      Brilliant:      	---       	Black=1} 0-1

[Event "Berlin Championship 2024"]
[Site "Berlin"]
[Date "2024.04.06"]
[Round "8.4"]
[White "Jahnz, Laurin"]
[Black "Eilenberg, Jonas"]
[Result "0-1"]
[ECO "B30"]
[WhiteElo "2051"]
[BlackElo "2303"]
[Annotator "RC"]
[PlyCount "144"]
[EventDate "2024.03.30"]
[EventType "swiss"]
[EventCountry "GER"]
[SourceTitle "playchess.com"]
[Source "ChessBase"]
[SourceQuality "1"]
[TimeControl "40/5400+30:1800+30"]

1. e4 {[%emt 0:00:01]} c5 {[%emt 0:00:15]} 2. Nf3 {[%emt 0:00:03]} Nc6 {[%emt 0:00:06]} 3. Bc4 {[%emt 0:00:02]} e6 {[%emt 0:00:16]} 4. O-O {[%emt 0:00:04]} Nf6 {[%emt 0:00:10]} 5. Re1 {[%emt 0:00:04]} a6 {[%emt 0:00:07]} 6. Bf1 {[%emt 0:00:09]} d5 {[%emt 0:00:48]} 7. exd5 {[%emt 0:00:13]} Nxd5 {[%emt 0:00:49]} 8. d4 {[%emt 0:04:24]} cxd4 {[%emt 0:02:34]} 9. Nxd4 {[%emt 0:00:54]} Bc5 {[%emt 0:01:43]} 10. Nb3 {[%emt 0:04:03]} Ba7 {[%emt 0:00:57]} 11. N1d2 {[%emt 0:05:09]} O-O {[%emt 0:04:13]} 12. Nf3 {[%emt 0:03:40]} Qc7 {[%emt 0:11:28]} 13. c3 {[%emt 0:03:37]} Rd8 {[%emt 0:01:46]} 14. Qc2 {[%emt 0:01:39]} e5 {[%emt 0:05:31]} 15. Bd3 {[%emt 0:05:18]} g6 {[%emt 0:01:31]} 16. Bg5 {[%emt 0:03:51]} f6 {[%emt 0:00:50]} 17. Bh6 {[%emt 0:03:44]} Nce7 {[%emt 0:03:33]} 18. Qe2 {[%emt 0:14:14]} Be6 {[%emt 0:04:25]} 19. Nbd4 {[%emt 0:06:40]} Bf7 {[%emt 0:04:07]} 20. Nc2 {[%emt 0:04:37]} Nc6 {[%emt 0:13:20]} 21. Ne3 {[%emt 0:06:49]} Nxe3 {[%emt 0:03:50]} 22. Bxe3 {[%emt 0:00:07]} Bxe3 {[%emt 0:00:28]} 23. Qxe3 {[%emt 0:00:27]} Rd7 {[%emt 0:00:42]} 24. Bc2 {[%emt 0:01:35]} Rad8 {[%emt 0:01:12]} 25. a3 {[%emt 0:13:02]} Na5 {[%emt 0:02:49]} 26. Rad1 {[%emt 0:01:42]} Nc4 {[%emt 0:02:23]} 27. Rxd7 {[%emt 0:00:18]} Rxd7 {[%emt 0:01:19]} 28. Qc1 {[%emt 0:01:05]} Bd5 {[%emt 0:04:14]} 29. Rd1 {[%emt 0:05:17]} Kg7 {[%emt 0:05:11]} 30. b3 {[%emt 0:03:11]} Na5 {[%emt 0:00:27]} 31. c4 {[%emt 0:00:54]} Bxf3 {[%emt 0:00:05]} 32. Rxd7+ {[%emt 0:01:57]} Qxd7 {[%emt 0:00:02]} 33. gxf3 {[%emt 0:00:01]} Nc6 {[%emt 0:02:39]} 34. Be4 {[%emt 0:01:36]} Nd4 {[%emt 0:00:05]} 35. Qd1 {[%emt 0:00:24]} b5 {[%emt 0:08:24]} 36. Qd3 {[%emt 0:03:49]} Qc7 {[%emt 0:03:06]} 37. Bd5 {[%emt 0:01:03]} a5 {[%emt 0:03:58]} 38. Kg2 {[%emt 0:00:22]} Qc5 {[%emt 0:01:08]} 39. a4 {[%emt 0:02:10]} bxa4 {[%emt 0:02:43]} 40. bxa4 {[%emt 0:00:00]} Qb4 {[%emt 0:02:01]} 41. f4 {[%emt 0:08:28]} Qxa4 {[%emt 0:06:56]} 42. fxe5 {[%emt 0:00:12]} fxe5 {[%emt 0:00:04]} 43. Qe4 {[%emt 0:00:12]} Qe8 {[%emt 0:00:14]} 44. f4 {[%emt 0:00:05]} Kf6 {[%emt 0:00:43]} 45. c5 {[%emt 0:00:06]} Qb8 {[%emt 0:03:02]} 46. c6 {[%emt 0:03:41]} Qb2+ {[%emt 0:01:13]} 47. Kf1 {[%emt 0:06:47]} Qc1+ {[%emt 0:03:25]} 48. Kf2 {[%emt 0:01:26]} Qd2+ {[%emt 0:00:36]} 49. Kf1 {[%emt 0:00:11]} Qc1+ {[%emt 0:03:20]} 50. Kf2 {[%emt 0:01:21]} Qb2+ {[%emt 0:00:32]} 51. Kf1 {[%emt 0:00:06]} Nb5 {[%emt 0:02:53]} 52. Qc4 {[%emt 0:05:13]} Nd6 {[%emt 0:07:01]} 53. Qc5 {[%emt 0:01:41]} Qb5+ {[%emt 0:00:23]} 54. Qxb5 {[%emt 0:00:25]} Nxb5 {[%emt 0:00:04]} 55. fxe5+ {[%emt 0:00:07]} Kxe5 {[%emt 0:00:03]} 56. Bc4 {[%emt 0:01:02]} Nc7 {[%emt 0:00:26]} 57. Bg8 {[%emt 0:00:04]} h6 {[%emt 0:01:03]} 58. Ke2 {[%emt 0:00:04]} Kd6 {[%emt 0:00:57]} 59. Bh7 {[%emt 0:00:04]} g5 {[%emt 0:00:03]} 60. Be4 {[%emt 0:00:02]} Ne6 {[%emt 0:01:47]} 61. Kf3 {[%emt 0:03:01]} a4 {[%emt 0:04:03]} 62. Kg4 {[%emt 0:00:15]} a3 {[%emt 0:00:06]} 63. Bb1 {[%emt 0:00:03]} Ng7 {[%emt 0:00:06]} 64. Kf3 {[%emt 0:01:11]} Kxc6 {[%emt 0:00:09]} 65. Ke4 {[%emt 0:00:02]} Kc5 {[%emt 0:01:49]} 66. Kd3 {[%emt 0:00:02]} Kb4 {[%emt 0:01:02]} 67. Ba2 {[%emt 0:00:04]} h5 {[%emt 0:00:46]} 68. Bd5 {[%emt 0:00:06]} g4 {[%emt 0:00:13]} 69. Bf7 {[%emt 0:00:04]} h4 {[%emt 0:00:37]} 70. Bd5 {[%emt 0:00:03]} g3 {[%emt 0:00:06]} 71. hxg3 {[%emt 0:00:05]} hxg3 {[%emt 0:00:05]} 72. Ke3 {[%emt 0:00:04]} Nf5+ {[%emt 0:00:10]} 0-1

[Event "Berlin Championship 2024"]
[Site "Berlin"]
[Date "2024.04.06"]
[Round "8.5"]
[White "Florstedt, Johannes"]
[Black "Yatskar, Martin"]
[Result "1-0"]
[ECO "E01"]
[WhiteElo "2348"]
[BlackElo "2066"]
[Annotator "RC"]
[PlyCount "67"]
[EventDate "2024.03.30"]
[EventType "swiss"]
[EventCountry "GER"]
[SourceTitle "playchess.com"]
[Source "ChessBase"]
[SourceQuality "1"]
[TimeControl "40/5400+30:1800+30"]

1. Nf3 {[%emt 0:00:07]} d5 {[%emt 0:00:16]} 2. g3 {[%emt 0:00:05]} c5 {[%emt 0:00:06]} 3. Bg2 {[%emt 0:00:05]} Nc6 {[%emt 0:00:05]} 4. d4 {[%emt 0:00:15]} e6 {[%emt 0:00:08]} 5. O-O {[%emt 0:00:21]} cxd4 {[%emt 0:00:06]} 6. Nxd4 {[%emt 0:00:06]} Bc5 {[%emt 0:00:06]} 7. Nxc6 {[%emt 0:00:12]} bxc6 {[%emt 0:00:07]} 8. c4 {[%emt 0:00:06]} Nf6 {[%emt 0:00:43]} 9. Qc2 {[%emt 0:00:08]} Qe7 {[%emt 0:00:04]} 10. cxd5 {[%emt 0:02:41]} cxd5 {[%emt 0:00:09]} 11. Be3 {[%emt 0:00:06]} Bxe3 {[%emt 0:00:04]} 12. Qc6+ {[%emt 0:00:12]} Qd7 {[%emt 0:00:31]} 13. Qxa8 {[%emt 0:00:08]} O-O {[%emt 0:02:06]} 14. Qb8 {[%emt 0:00:06]} Bb7 {[%emt 0:00:48]} 15. Qe5 {[%emt 0:00:15]} Ng4 {[%emt 0:00:05]} 16. Qh5 {[%emt 0:00:17]} Nxf2 {[%emt 0:00:18]} 17. Rxf2 {[%emt 0:00:10]} Qb5 {[%emt 0:00:05]} 18. Na3 {[%emt 0:01:11]} Qxb2 {[%emt 0:00:23]} 19. Rb1 {[%emt 0:00:21]} Qxa2 {[%emt 0:00:28]} 20. Rxb7 {[%emt 0:01:29]} Qxa3 {[%emt 0:00:06]} 21. Qf3 {[%emt 0:01:05]} Bxf2+ {[%emt 0:02:04]} 22. Qxf2 {[%emt 0:05:02]} a5 {[%emt 0:02:07]} 23. Qd4 {[%emt 0:20:47]} Rc8 {[%emt 0:18:26]} 24. Bh3 {[%emt 0:05:14]} Qc1+ {[%emt 0:10:08]} 25. Kg2 {[%emt 0:00:07]} Qc4 {[%emt 0:02:54]} 26. Qe5 {[%emt 0:02:01]} Qc6 {[%emt 0:20:03]} 27. Re7 {[%emt 0:06:05]} d4+ {[%emt 0:18:06]} 28. Kf2 {[%emt 0:04:04]} d3 {[%emt 0:02:32]} 29. Bxe6 {[%emt 0:08:42]} Rf8 {[%emt 0:01:15]} 30. Bd5 {[%emt 0:01:00]} Qg6 {[%emt 0:07:45]} 31. Re8 {[%emt 0:06:42]} Qb6+ {[%emt 0:03:53]} 32. Kg2 {[%emt 0:00:16]} Qb4 {[%emt 0:06:29]} 33. Bxf7+ {[%emt 0:02:34]} Kh8 {[%emt 0:00:03]} 34. exd3 {[%emt 0:01:54]} 1-0

[Event "Berlin Championship 2024"]
[Site "Berlin"]
[Date "2024.04.06"]
[Round "8.6"]
[White "Schmidek, Emil"]
[Black "Jahnz, Fabian"]
[Result "1-0"]
[ECO "D20"]
[WhiteElo "2439"]
[BlackElo "2287"]
[Annotator "TA"]
[PlyCount "113"]
[EventDate "2024.03.30"]
[EventType "swiss"]
[EventCountry "GER"]
[SourceTitle "playchess.com"]
[Source "ChessBase"]
[SourceQuality "1"]
[TimeControl "40/5400+30:1800+30"]

{[%evp 13,113,35,47,35,30,41,53,52,46,39,36,34,27,31,60,51,72,87,61,17,17,24,19,26,38,34,29,0,0,0,0,0,18,18,10,23,27,18,33,41,54,18,25,14,23,0,0,0,0,0,0,0,12,10,26,0,26,31,28,17,33,0,16,0,1,0,24,0,18,8,8,0,0,0,0,0,0,0,62,55,131,131,129,133,127,140,254,244,219,237,269,260,377,390,389,384,475,475,472,488,681,681]} 1. d4 {[%emt 0:00:03]} d5 {[%emt 0:00:11]} 2. c4 {[%emt 0:00:05]} dxc4 {[%emt 0:00:13]} 3. e4 {[%emt 0:00:06]} e5 {[%emt 0:00:24]} 4. Nf3 {[%emt 0:00:22]} exd4 {[%emt 0:00:21]} 5. Bxc4 {[%emt 0:00:38]} Nc6 {[%emt 0:00:19]} 6. O-O {[%emt 0:01:12]} Be6 {[%emt 0:00:23]} 7. Bb5 {[%emt 0:00:45]} Bc5 {[%emt 0:00:43][%cal Bf8c5,Bc5b6,Bb6a7][%mdl 32] [#]} 8. b4 $1 {[%emt 0:00:12]} Bb6 {[%emt 0:00:48]} 9. a4 {[%emt 0:00:11][%cal Ba2a4,Ba4a5][%mdl 32] a5 would now be deadly.} a6 {[%emt 0:00:40]} 10. Bxc6+ {[%emt 0:01:31] White is slightly better.} bxc6 {[%emt 0:00:08]} 11. a5 {[%emt 0:01:43]} Ba7 {[%emt 0:00:11]} 12. Bb2 {[%emt 0:00:14][%cal Rb2d4]} Nf6 {[%emt 0:13:59]} 13. Bxd4 {[%emt 0:04:15]} O-O {[%emt 0:03:36]} 14. Nc3 {[%emt 0:19:41]} Qe7 {[%emt 0:18:39]} 15. Bxa7 {[%emt 0:04:37]} Rxa7 {[%emt 0:00:17]} 16. Ne5 {[%emt 1:02:55]} (16. Nd4 $5 Bd7 17. Nc2 $15) 16... Qd6 {[%emt 0:09:40]} 17. Qxd6 {[%emt 0:00:00]} cxd6 {[%emt 0:00:07]} 18. Nd3 {[%emt 0:00:00]} (18. Nxc6 Rc7 19. Nd5 Bxd5 20. exd5 Nxd5 $19) 18... Rb7 {[%emt 0:03:54]} 19. Rfd1 {[%emt 0:00:00]} Bc4 {[%emt 0:07:16]} 20. e5 {[%emt 0:00:00]} dxe5 {[%emt 0:11:45]} 21. Nxe5 {[%emt 0:00:00]} Nd5 {[%emt 0:12:26]} 22. Rdc1 {[%emt 0:00:00]} Rxb4 {[%emt 0:08:21]} 23. Nxc6 {[%emt 0:00:00] aiming for Nxd5.} Rb7 $1 {[%emt 0:00:06]} 24. Ne4 {[%emt 0:00:00] A dynamic duo of knights.} Bb5 {[%emt 0:00:47]} 25. Nd6 {[%emt 0:00:00]} Bxc6 {[%emt 0:04:07]} 26. Rxc6 {[%emt 0:00:00]} Ra7 {[%emt 0:00:36]} 27. Rb1 {[%emt 0:00:00]} g6 {[%emt 0:00:07]} 28. Kf1 {[%emt 0:00:00]} Kg7 {[%emt 0:00:43]} 29. Ne4 {[%emt 0:01:58]} Rd8 {[%emt 0:01:50]} 30. g3 {[%emt 0:00:12]} Ne7 {[%emt 0:00:42]} 31. Rc5 {[%emt 0:00:47]} Rd4 {[%emt 0:00:30]} 32. Nc3 {[%emt 0:00:12]} Rd6 {[%emt 0:00:39]} 33. Rb6 {[%emt 0:01:27]} Rad7 {[%emt 0:00:40]} 34. Ke1 {[%emt 0:02:30]} Re6+ {[%emt 0:00:42]} 35. Rxe6 {[%emt 0:00:23]} fxe6 $11 {[%emt 0:00:03][%mdl 4096] Endgame. KRN-KRN} 36. Ke2 {[%emt 0:00:27]} h6 {[%emt 0:00:41]} 37. Ke3 {[%emt 0:00:43]} Nf5+ {[%emt 0:01:00]} 38. Ke4 {[%emt 0:01:20]} Kf6 {[%emt 0:00:08]} 39. g4 {[%emt 0:00:34]} Rd4+ {[%emt 0:01:13]} 40. Kf3 {[%emt 0:00:05]} Ne7 {[%emt 0:00:59]} 41. Ne4+ {[%emt 0:11:35]} Kf7 {[%emt 0:00:31]} 42. Rc7 {[%emt 0:04:03]} Rd3+ {[%emt 0:06:25]} 43. Ke2 {[%emt 0:00:37]} Ra3 {[%emt 0:00:28]} 44. Nd6+ {[%emt 0:01:00]} Kf6 {[%emt 0:00:26][%cal Oe7d5]} 45. h4 {[%emt 0:06:00][%cal Og4g5] And now g5+! would win.} e5 {[%emt 0:09:40]} (45... Ra2+ $1 $11 46. Kd3 e5) 46. Nc4 $14 {[%emt 0:01:27] White is more active.} Rc3 {[%emt 0:02:24]} (46... Ra2+ $14 47. Kf3 Rc2) 47. Kd2 $16 {[%emt 0:01:07]} Rf3 {[%emt 0:00:15] [#]} 48. Ra7 $1 {[%emt 0:01:16]} Rxf2+ {[%emt 0:00:49]} 49. Ke3 {[%emt 0:01:04]} Rf4 {[%emt 0:00:06]} ({Not} 49... Nc6 $2 50. Rxa6 Rf1 51. Rxc6+ $18) (49... Ra2 $16) 50. Rxa6+ $18 {[%emt 0:00:21]} Kg7 {[%emt 0:00:09]} 51. Nxe5 {[%emt 0:00:45]} Nd5+ {[%emt 0:00:05]} 52. Kd2 {[%emt 0:01:04]} Re4 {[%emt 0:00:47]} (52... Rf2+ $142 53. Ke1 Ra2 54. Rxg6+ (54. Nxg6 Ra4 $14) 54... Kh7) 53. Rxg6+ {[%emt 0:02:05]} ({Weaker is} 53. Nxg6 Rxg4 54. Ne5 Rxh4 $14) 53... Kh7 {[%emt 0:00:05]} 54. Re6 {[%emt 0:00:10]} Ra4 {[%emt 0:00:55]} 55. a6 {[%emt 0:00:37] White is clearly winning.} Kg7 {[%emt 0:00:29]} 56. Rg6+ {[%emt 0:00:15]} Kh7 {[%emt 0:00:12]} 57. Rd6 {[%emt 0:00:25] Weighted Error Value: White=0.06 (flawless) /Black=0.21 (precise) .  Mistake:       	---       	Black=4      Inaccurate:     	White=5     	Black=3      OK:         	White=20    	Black=19     Best:        	White=5     	Black=3      Strong:       	White=1     	Black=1} 1-0

[Event "Berlin Championship 2024"]
[Site "Berlin"]
[Date "2024.04.06"]
[Round "8.7"]
[White "Thiede, Lars"]
[Black "Petersen, Marcel"]
[Result "1-0"]
[ECO "A26"]
[WhiteElo "2388"]
[BlackElo "2133"]
[Annotator "RC"]
[PlyCount "81"]
[EventDate "2024.03.30"]
[EventType "swiss"]
[EventCountry "GER"]
[SourceTitle "playchess.com"]
[Source "ChessBase"]
[SourceQuality "1"]
[TimeControl "40/5400+30:1800+30"]

1. Nf3 {[%emt 0:00:05]} g6 {[%emt 0:00:30]} 2. c4 {[%emt 0:02:29]} Bg7 {[%emt 0:00:25]} 3. g3 {[%emt 0:00:21]} e5 {[%emt 0:00:14]} 4. Nc3 {[%emt 0:00:16]} Ne7 {[%emt 0:00:38]} 5. Bg2 {[%emt 0:00:18]} O-O {[%emt 0:00:42]} 6. O-O {[%emt 0:03:43]} Nbc6 {[%emt 0:00:24]} 7. Rb1 {[%emt 0:08:16]} a5 {[%emt 0:06:34]} 8. d3 {[%emt 0:01:25]} d6 {[%emt 0:00:55]} 9. a3 {[%emt 0:02:53]} Nd4 {[%emt 0:00:48]} 10. Bg5 {[%emt 0:09:41]} h6 {[%emt 0:04:29]} 11. Bxe7 {[%emt 0:03:21]} Qxe7 {[%emt 0:00:06]} 12. b4 {[%emt 0:00:43]} axb4 {[%emt 0:01:23]} 13. axb4 {[%emt 0:00:07]} c6 {[%emt 0:02:54]} 14. b5 {[%emt 0:04:05]} Bg4 {[%emt 0:04:51]} 15. e3 {[%emt 0:05:09]} Nxf3+ {[%emt 0:04:30]} 16. Bxf3 {[%emt 0:00:28]} Bxf3 {[%emt 0:00:09]} 17. Qxf3 {[%emt 0:00:06]} Qd7 {[%emt 0:00:47]} 18. Rb3 {[%emt 0:04:11]} f5 {[%emt 0:05:07]} 19. Rfb1 {[%emt 0:10:40]} Ra7 {[%emt 0:03:54]} 20. Kg2 {[%emt 0:05:00]} Kh7 {[%emt 0:02:06]} 21. h3 {[%emt 0:05:09]} Rd8 {[%emt 0:05:39]} 22. e4 {[%emt 0:04:26]} Rc8 {[%emt 0:08:31]} 23. h4 {[%emt 0:06:34]} h5 {[%emt 0:05:59]} 24. exf5 {[%emt 0:04:54]} Qxf5 {[%emt 0:00:07]} 25. Qe3 {[%emt 0:02:31]} Raa8 {[%emt 0:01:35]} 26. bxc6 {[%emt 0:00:30]} bxc6 {[%emt 0:00:06]} 27. Rb7 {[%emt 0:00:59]} Rf8 {[%emt 0:07:58]} 28. Rc7 {[%emt 0:02:26]} Rac8 {[%emt 0:04:02]} 29. Ra7 {[%emt 0:01:44]} Rf7 {[%emt 0:01:35]} 30. Ne4 {[%emt 0:01:43]} Rd7 {[%emt 0:07:22]} 31. Rbb7 {[%emt 0:01:22]} Rxb7 {[%emt 0:00:59]} 32. Rxb7 {[%emt 0:00:07]} Rd8 {[%emt 0:03:22]} 33. Qa7 {[%emt 0:00:43]} Rg8 {[%emt 0:00:36]} 34. Rf7 {[%emt 0:01:20]} Qc8 {[%emt 0:00:35]} 35. Nxd6 {[%emt 0:01:10]} Qd8 {[%emt 0:01:15]} 36. Ne4 {[%emt 0:00:08]} Kh8 {[%emt 0:01:43]} 37. Rd7 {[%emt 0:01:21]} Qf8 {[%emt 0:00:40]} 38. Qc7 {[%emt 0:01:12]} Qf5 {[%emt 0:00:34]} 39. Rf7 {[%emt 0:01:33]} Qe6 {[%emt 0:01:21]} 40. Ng5 {[%emt 0:00:38]} Qe8 {[%emt 0:01:19]} 41. Qd6 {[%emt 0:33:46]} 1-0

[Event "Berlin Championship 2024"]
[Site "Berlin"]
[Date "2024.04.06"]
[Round "8.8"]
[White "Klenburg, Michael"]
[Black "Noetzel, Felix"]
[Result "1-0"]
[ECO "B31"]
[WhiteElo "2328"]
[BlackElo "2172"]
[Annotator "RC"]
[PlyCount "85"]
[EventDate "2024.03.30"]
[EventType "swiss"]
[EventCountry "GER"]
[SourceTitle "playchess.com"]
[Source "ChessBase"]
[SourceQuality "1"]
[TimeControl "40/5400+30:1800+30"]

1. Nf3 {[%emt 0:00:03]} c5 {[%emt 0:04:42]} 2. e4 {[%emt 0:00:28]} Nc6 {[%emt 0:00:20]} 3. Bb5 {[%emt 0:00:38]} g6 {[%emt 0:00:11]} 4. O-O {[%emt 0:00:23]} Bg7 {[%emt 0:00:25]} 5. c3 {[%emt 0:00:44]} e5 {[%emt 0:00:43]} 6. Re1 {[%emt 0:01:40]} Nge7 {[%emt 0:01:10]} 7. d4 {[%emt 0:03:10]} cxd4 {[%emt 0:00:47]} 8. cxd4 {[%emt 0:00:06]} exd4 {[%emt 0:00:19]} 9. Bf4 {[%emt 0:00:35]} O-O {[%emt 0:03:12]} 10. Bd6 {[%emt 0:02:12]} a6 {[%emt 0:00:16]} 11. Bd3 {[%emt 0:05:04]} b6 {[%emt 0:00:09]} 12. Nbd2 {[%emt 0:00:47]} Bb7 {[%emt 0:04:07]} 13. a4 {[%emt 0:02:19]} Re8 {[%emt 0:05:51]} 14. Nb3 {[%emt 0:07:58]} Nc8 {[%emt 0:02:17]} 15. Bg3 {[%emt 0:00:09]} d6 {[%emt 0:03:45]} 16. Qd2 {[%emt 0:08:01]} N8e7 {[%emt 0:11:43]} 17. Bf4 {[%emt 0:11:25]} Qd7 {[%emt 0:04:04]} 18. Bf1 {[%emt 0:04:00]} Ne5 {[%emt 0:27:02]} 19. Nfxd4 {[%emt 0:01:00]} Rac8 {[%emt 0:01:57]} 20. Qb4 {[%emt 0:03:41]} d5 {[%emt 0:12:24]} 21. Qxb6 {[%emt 0:03:51]} dxe4 {[%emt 0:01:57]} 22. Na5 {[%emt 0:07:50]} Ba8 {[%emt 0:04:44]} 23. Bxe5 {[%emt 0:00:22]} Bxe5 {[%emt 0:00:08]} 24. Ndb3 {[%emt 0:00:14]} Qc7 {[%emt 0:05:32]} 25. Qxc7 {[%emt 0:01:08]} Rxc7 {[%emt 0:00:01]} 26. Nc4 {[%emt 0:00:46]} Bg7 {[%emt 0:00:44]} 27. Nb6 {[%emt 0:01:28]} Bb7 {[%emt 0:01:04]} 28. Rac1 {[%emt 0:02:18]} Rxc1 {[%emt 0:03:00]} 29. Rxc1 {[%emt 0:32:40]} Nd5 {[%emt 0:01:14]} 30. Bxa6 {[%emt 0:00:00]} Nxb6 {[%emt 0:00:51]} 31. Bxb7 {[%emt 0:00:00]} Nxa4 {[%emt 0:00:06]} 32. Bc6 {[%emt 0:00:00]} Rb8 {[%emt 0:01:04]} 33. Bxa4 {[%emt 0:00:00]} Bxb2 {[%emt 0:00:29]} 34. Rc4 {[%emt 0:00:00]} f5 {[%emt 0:00:13]} 35. g3 {[%emt 0:00:00]} Kg7 {[%emt 0:00:45]} 36. Kg2 {[%emt 0:00:00]} g5 {[%emt 0:00:35]} 37. Nd2 {[%emt 0:00:00]} Be5 {[%emt 0:00:28]} 38. Nf1 {[%emt 0:00:00]} Rb6 {[%emt 0:00:33]} 39. Bd7 {[%emt 0:00:00]} Kg6 {[%emt 0:00:29]} 40. Rc5 {[%emt 0:00:00]} Kf6 {[%emt 0:00:21]} 41. Ne3 {[%emt 0:12:03]} Rb2 {[%emt 0:30:08]} 42. Rxe5 {[%emt 0:00:46]} Kxe5 {[%emt 0:00:37]} 43. Nc4+ {[%emt 0:00:07]} 1-0